fUSD/lending_fUSD_20240627
["ID","MTS","AMOUNT","RATE_DAILY","PERIOD"]
[330483191,1719487287503,-292.31817094,0.00012273,2]
[330483192,1719487287525,-250.0,0.00013058,2]
[330483193,1719487287545,-155.08202019,0.00013128,2]
[330483194,1719487287567,-1000.0,0.00013324,2]
[330483195,1719487287589,-944.47198158,0.00013331,2]
[330483196,1719487287611,-250.0,0.00013352,2]
[330483197,1719487287632,-575.2,0.000135,2]
[330483198,1719487287653,-193.46230589,0.00013543,2]
[330483199,1719487287675,-1813.25269439,0.00013562,2]
[330483200,1719487287704,-176.74,0.00013699,2]
[330483201,1719487287727,-1340.78020771,0.00013759,2]
[330483202,1719487287754,-3067.09205991,0.0001379,2]
[330483203,1719487287775,-3022.4,0.00013799,2]
[330483204,1719487287795,-14929.43624541,0.0001385,2]
[330483205,1719487287814,-500.0,0.00013887,2]
[330483206,1719487287835,-500.0,0.00013888,2]
[330483207,1719487287854,-500.0,0.00013888,2]
[330483208,1719487287874,-200.0,0.00013888,2]
[330483209,1719487287893,-329.5404875,0.00013889,2]
[330483210,1719487295202,166.46878,0.0001385,2]
[330483211,1719487302597,1494.2292,0.00013789,2]
[330483212,1719487348824,688.61987134,0.00013889,2]
[330483213,1719487443704,150.0,0.00013888,2]
[330483214,1719487476701,2760.38285391,0.00013889,2]
[330483215,1719487602889,284.07449397,0.00013849,2]
[330483216,1719487622814,150.0,0.00013888,2]
[330483217,1719487636066,-2099.9417,0.00013889,2]
[330483219,1719487714771,-17740.9417,0.00013889,2]
[330483220,1719487729335,619.75788417,0.00013889,2]
[330483221,1719487742763,2828.45274486,0.00013849,2]
[330483222,1719487759749,-12540.9417,0.00013889,2]
[330483223,1719487798542,-41633.7434,0.00013889,2]
[330483224,1719487798567,-7841.9619,0.00013889,2]
[330483225,1719487798590,-6365.2364,0.00013889,2]
[330483226,1719487803343,557.49,0.0001213,2]
[330483227,1719487803577,150.0,0.00013888,2]
[330483229,1719487831976,-328.885,0.00013889,2]
[330483236,1719487832282,-256.3542,0.00013889,2]
[330483237,1719487832291,-127.56336538,0.00013889,2]
[330483238,1719487832304,-3545.23594935,0.00013889,2]
[330483239,1719487832316,-2722.68198657,0.00013889,2]
[330483246,1719487838203,-692.79472096,0.00013889,2]
[330483248,1719487838216,-408.66224937,0.00013889,2]
[330483249,1719487838228,-264.24,0.00013889,2]
[330483250,1719487838240,-1994.87656404,0.00013889,2]
[330483251,1719487838584,-1090.92153378,0.00013889,2]
[330483252,1719487838596,-11620.95933055,0.00013889,2]
[330483253,1719487838606,-1000.0,0.00013889,2]
[330483254,1719487838616,-166.39429598,0.000139,2]
[330483255,1719487838626,-160.13713916,0.000139,2]
[330483256,1719487838636,-157.02239902,0.000139,2]
[330483257,1719487838646,-2140.970447,0.000139,2]
[330483258,1719487838655,-190.85369923,0.000139,2]
[330483259,1719487838665,-200.0,0.00013924,2]
[330483260,1719487838675,-8257.47377813,0.00013988,2]
[330483261,1719487838685,-3391.13383428,0.00013989,2]
[330483262,1719487838697,-4956.33438066,0.00013989,2]
[330483265,1719487840257,-414.80591757,0.00013989,2]
[330483266,1719487840269,-365.85916475,0.00013989,2]
[330483267,1719487840281,-542.84209629,0.00013989,2]
[330483268,1719487840828,-2781.87350262,0.00013989,2]
[330483269,1719487840840,-1047.48670417,0.00013989,2]
[330483270,1719487840852,-268.477121,0.00013989,2]
[330483271,1719487840868,-799.64683488,0.00013989,2]
[330483272,1719487840881,-38345.4209184,0.00013989,2]
[330483275,1719487843219,-5976.31321052,0.00013989,2]
[330483276,1719487843231,-1067.81353758,0.00013989,2]
[330483277,1719487843243,-455.24917089,0.00013989,2]
[330483278,1719487843254,-240581.27336284,0.00013989,2]
[330483279,1719487843264,-2102.54519382,0.00013989,2]
[330483280,1719487843536,-2022.34399078,0.00013989,2]
[330483281,1719487843547,-4433.464,0.00013989,2]
[330483282,1719487843559,-8410.9083726,0.00013989,2]
[330483283,1719487843569,-2000.0,0.00013989,2]
[330483284,1719487843579,-200.0,0.00013989,2]
[330483285,1719487843589,-2279.9396185,0.00013989,2]
[330483286,1719487843599,-4846.9453631,0.00013989,2]
[330483287,1719487843610,-1335.643289,0.00013989,2]
[330483288,1719487843619,-35887.8563549,0.00013989,2]
[330483289,1719487843630,-268.43495945,0.00013989,2]
[330483290,1719487843640,-1516.6704309,0.00013989,2]
[330483291,1719487843649,-155.0,0.00013989,2]
[330483292,1719487843659,-5914.1484835,0.00013999,2]
[330483293,1719487843669,-347043.56397057,0.00014,2]
[330483295,1719487848064,-523.98031464,0.00013989,2]
[330483296,1719487848077,-828.46681849,0.00013989,2]
[330483297,1719487848089,-2525.25727382,0.00013989,2]
[330483298,1719487848250,-4790.23629585,0.00013989,2]
[330483299,1719487848260,-66296.45561133,0.00014,2]
[330483300,1719487848271,-2869.07369635,0.00014,2]
[330483301,1719487848282,-538270.0468249,0.00014,2]
[330483302,1719487848291,-1000.0,0.00014,2]
[330483303,1719487848301,-1000.0,0.00014,2]
[330483304,1719487848311,-1000.0,0.00014,2]
[330483305,1719487848322,-1000.0,0.00014,2]
[330483306,1719487848331,-1000.0,0.00014,2]
[330483307,1719487848342,-1000.0,0.00014,2]
[330483308,1719487848352,-1000.0,0.00014,2]
[330483309,1719487848362,-1000.0,0.00014,2]
[330483310,1719487848372,-1000.0,0.00014,2]
[330483311,1719487848382,-1000.0,0.00014,2]
[330483312,1719487848393,-1000.0,0.00014,2]
[330483313,1719487848404,-1000.0,0.00014,2]
[330483314,1719487848414,-1000.0,0.00014,2]
[330483315,1719487848423,-1000.0,0.00014,2]
[330483316,1719487848435,-1000.0,0.00014,2]
[330483317,1719487848444,-1000.0,0.00014,2]
[330483318,1719487848454,-1000.0,0.00014,2]
[330483319,1719487848464,-1000.0,0.00014,2]
[330483320,1719487848474,-1000.0,0.00014,2]
[330483321,1719487848484,-1000.0,0.00014,2]
[330483322,1719487848494,-1000.0,0.00014,2]
[330483323,1719487848504,-1000.0,0.00014,2]
[330483324,1719487848513,-1000.0,0.00014,2]
[330483325,1719487848524,-1000.0,0.00014,2]
[330483326,1719487848534,-163.47041426,0.00014,2]
[330483327,1719487848544,-200.0,0.00014,2]
[330483328,1719487848555,-200.0,0.00014,2]
[330483329,1719487848565,-499.99,0.00014,2]
[330483330,1719487848575,-11551.86,0.00014,2]
[330483331,1719487848585,-250.0,0.00014056,2]
[330483332,1719487848594,-200.0,0.0001414,2]
[330483333,1719487848604,-200.0,0.00014281,2]
[330483334,1719487848614,-557.49,0.00014393,2]
[330483335,1719487848624,-200.0,0.00014424,2]
[330483336,1719487848634,-5281.53,0.00014437,2]
[330483337,1719487848644,-200.0,0.00014568,2]
[330483338,1719487848654,-299.99,0.00014568,2]
[330483339,1719487848663,-2140.97044692,0.00014586,2]
[330483340,1719487848673,-2760.38285383,0.00014728,2]
[330483341,1719487848684,-619.75788417,0.00014732,2]
[330483342,1719487848694,-173.26,0.00014793,2]
[330483343,1719487848704,-374.40607274,0.00014971,2]
[330483344,1719487848714,-226.97665617,0.00014973,2]
[330483345,1719487848724,-1000.0,0.0001499,2]
[330483346,1719487848735,-625.33216649,0.00014999,2]
[330483347,1719487848745,-23030.20716756,0.00015,2]
[330483348,1719487848757,-3567.11591837,0.00015,2]
[330483349,1719487941618,219.86,0.00013781,3]
[330483350,1719488041469,3108.00277145,0.0001379,2]
[330483351,1719488104556,17351.72761448,0.00011189,2]
[330483352,1719488115585,3367.19343123,0.00013799,2]
[330483353,1719488140215,24256.33911923,0.000112,2]
[330483356,1719488250451,463.66632078,0.00013789,2]
[330483359,1719488271805,13260.35433439,0.00013736,2]
[330483396,1719489032065,-2160.20325009,0.00011098,2]
[330483397,1719489032075,-3023.35359891,0.00011098,2]
[330483398,1719489032084,-3107.31885347,0.00011098,2]
[330483400,1719489032095,-2373.57182662,0.00011098,2]
[330483401,1719489032103,-2376.06489013,0.00011196,2]
[330483402,1719489032116,-648.04,0.00011217,2]
[330483403,1719489032127,-2000.0,0.00012,2]
[330483404,1719489032138,-193.46230589,0.00012273,2]
[330483405,1719489032148,-250.0,0.0001287,2]
[330483406,1719489032157,-2000.0,0.00013,2]
[330483407,1719489032167,-23900.0,0.00013424,2]
[330483408,1719489032176,-648.04,0.00013481,2]
[330483409,1719489032186,-150.0,0.00013534,2]
[330483410,1719489032196,-499.99,0.00013534,2]
[330483411,1719489032207,-1815.42,0.00013551,2]
[330483412,1719489032216,-1000.0,0.00013588,2]
[330483413,1719489032227,-243.22,0.00013699,2]
[330483414,1719489032236,-163.42,0.00013711,2]
[330483415,1719489032251,-1102.81224386,0.00013736,2]
[330483416,1719489032261,-1340.78020771,0.00013759,2]
[330483417,1719489032271,-531.23979859,0.00013759,2]
[330483418,1719489032281,-405.7080307,0.00013789,2]
[330483419,1719489032291,-3030.47408808,0.00013799,2]
[330483420,1719489032302,-650.83910401,0.00013849,2]
[330483422,1719489032311,-250.0,0.00013865,2]
[330483424,1719489032323,-150.99,0.00013865,2]
[330483426,1719489032332,-62550.389,0.00013889,2]
[330483428,1719489032341,-245000.0,0.00013889,2]
[330483430,1719489032351,-1258.785,0.00013889,2]
[330483431,1719489032360,-209.03096185,0.00013889,2]
[330483432,1719489032370,-329.54048749,0.00013899,2]
[330483433,1719489032380,-528.1739353,0.00013899,2]
[330483434,1719489032390,-155.27735735,0.000139,2]
[330483435,1719489032399,-3468.984015,0.000139,2]
[330483436,1719489032410,-200.92918961,0.000139,2]
[330483437,1719489032419,-194.18126619,0.00013989,2]
[330483438,1719489032428,-207.71704746,0.00013989,2]
[330483439,1719489032438,-625.33216649,0.00013989,2]
[330483440,1719489032447,-307549.84205734,0.00013999,2]
[330483441,1719489032459,-522.3297664,0.00013999,2]
[330483442,1719489032471,-707.79115138,0.00013999,2]
[330483443,1719489032484,-306.59,0.00013999,2]
[330483444,1719489032878,-152237.01945448,0.00013999,2]
[330483445,1719489032888,-216.26835515,0.00013999,2]
[330483446,1719489032899,-150.0,0.00013999,2]
[330483447,1719489032908,-1113777.60980131,0.00014,2]
[330483448,1719489032937,-581.06799919,0.00014,2]
[330483449,1719489032950,-10262.18339989,0.00014,2]
[330483450,1719489032962,-1178.79486115,0.00014,2]
[330483451,1719489032983,-31731.66379348,0.00014,2]
[330483452,1719489032994,-3299.21382241,0.00014,2]
[330483453,1719489033005,-36737.70285173,0.00014,2]
[330483458,1719489038155,-193.46230589,0.00011199,2]
[330483459,1719489038165,-684.32769411,0.00014,2]
[330483499,1719489043110,-242683.81855666,0.00014,2]
[330483509,1719489043417,-1103.0,0.00014,2]
[330483512,1719489046221,-986.66023736,0.00014,2]
[330483513,1719489046233,-422.24066894,0.00014,2]
[330483537,1719490232254,-450.0,0.00011042,2]
[330483538,1719490232264,-463.35873498,0.00011098,2]
[330483539,1719490232274,-3022.28056517,0.00011098,2]
[330483540,1719490232284,-300.0,0.00011198,2]
[330483541,1719490232293,-6375.50145985,0.00011199,2]
[330483542,1719490232306,-490.54460997,0.00011199,2]
[330483543,1719490232431,-640.72236204,0.00011199,2]
[330483544,1719490232443,-322.91174239,0.00011199,2]
[330483545,1719490232468,-938.21279485,0.00011199,2]
[330483546,1719490232479,-451.92492773,0.00011199,2]
[330483547,1719490232506,-1463.45546276,0.00011199,2]
[330483548,1719490232518,-2199.03870347,0.00011199,2]
[330483549,1719490232539,-639.85180588,0.00011199,2]
[330483550,1719490232568,-1901.77611234,0.00011199,2]
[330483551,1719490232578,-103.79744249,0.00011228,2]
[330483559,1719490238300,-500.81255751,0.00011228,2]
[330483560,1719490238310,-197.0,0.00012303,2]
[330483561,1719490238320,-384.28,0.00012939,2]
[330483562,1719490238330,-250.0,0.00012948,2]
[330483563,1719490238340,-205.93,0.00013026,2]
[330483564,1719490238350,-661.97744249,0.00013095,2]
[330483565,1719490238375,-548.48255751,0.00013095,2]
[330483566,1719490238388,-687.42157689,0.00013128,2]
[330483567,1719490238450,-1683.30375358,0.00013128,2]
[330483568,1719490238552,-2.84649615,0.00013128,2]
[330483569,1719490238562,-200.0,0.00013184,2]
[330483570,1719490238571,-48.03418536,0.00013274,2]
[330483571,1719490238583,-2535.65049335,0.00013274,2]
[330483572,1719490238596,-8355.461751,0.00013274,2]
[330483573,1719490238681,-1214.80253227,0.00013274,2]
[330483584,1719490240498,-11746.05103802,0.00013274,2]
[330483585,1719490240508,-250.0,0.00013306,2]
[330483586,1719490240519,-604.61,0.00013491,2]
[330483587,1719490240529,-243.22,0.00013699,2]
[330483588,1719490240539,-163.42,0.00013699,2]
[330483589,1719490240549,-155.0,0.00013759,2]
[330483590,1719490240559,-202.10581647,0.00013802,2]
[330483591,1719490240568,-193.46230589,0.00013849,2]
[330483592,1719490240579,-415.07899166,0.00013867,2]
[330483593,1719490240588,-527.85949544,0.00013889,2]
[330483594,1719490240598,-650.83910401,0.00013889,2]
[330483595,1719490240609,-9700.0161,0.000139,2]
[330483596,1719490240619,-473.0272,0.000139,2]
[330483597,1719490240633,-71367.6892,0.000139,2]
[330483598,1719490240644,-2840.6389635,0.000139,2]
[330483599,1719490240653,-329.54048749,0.000139,2]
[330483600,1719490240662,-377.40053206,0.000139,2]
[330483601,1719490240672,-384.32645906,0.00013926,2]
[330483602,1719490240683,-499.99,0.00013978,2]
[330483603,1719490240692,-155.0,0.00013989,2]
[330483604,1719490240702,-198.28264365,0.00013989,2]
[330483605,1719490240713,-193.38921262,0.0001399,2]
[330483606,1719490240723,-625.33216649,0.00013999,2]
[330483607,1719490240733,-625.33216649,0.00013999,2]
[330483608,1719490240743,-3356.32824864,0.00014,2]
[330483648,1719490241606,-1228.72540074,0.00014,2]
[330483649,1719490241674,-1444.45895339,0.00014,2]
[330483650,1719490241686,-420.48452023,0.00014,2]
[330483651,1719490241697,-264.81699999,0.00014,2]
[330483652,1719490241709,-2203.4,0.00014,2]
[330483653,1719490241775,-61402.12720747,0.00014,2]
[330483674,1719490243442,-38951.96640837,0.00014,2]
[330483675,1719490243555,-242683.81855666,0.00014,2]
[330483676,1719490243706,-1589.12648081,0.00014,2]
[330483677,1719490243766,-222532.89679762,0.00014,2]
[330483678,1719490243776,-2000.0,0.00014,2]
[330483679,1719490243786,-206.63372,0.00014,2]
[330483680,1719490243797,-155.7163574,0.00014099,2]
[330483681,1719490243807,-1000.0,0.00014131,2]
[330483682,1719490243816,-12750.87079777,0.000145,2]
[330483683,1719490243826,-1026.0,0.000146,2]
[330483684,1719490243836,-1018.0,0.000147,2]
[330483685,1719490243845,-2840.63896348,0.00014733,2]
[330483686,1719490243855,-500.0,0.00014879,2]
[330483687,1719490243864,-500.0,0.0001488,2]
[330483688,1719490243875,-155.61777895,0.00014899,2]
[330483689,1719490243885,-297.24474814,0.00014899,2]
[330483690,1719490243895,-165.96114657,0.000149,2]
[330483691,1719490243904,-155.27735734,0.000149,2]
[330483692,1719490243914,-300.0,0.000149,5]
[330483693,1719490243924,-3179.90201375,0.000149,2]
[330483694,1719490243934,-377.40053204,0.00014971,2]
[330483695,1719490243944,-6662.9242233,0.00014989,2]
[330483696,1719490243953,-5054.1481161,0.00014989,2]
[330483697,1719490243963,-1576.3756901,0.00014989,2]
[330483698,1719490243973,-32454.0126132,0.00014989,2]
[330483699,1719490243982,-899.8758214,0.00014989,2]
[330483700,1719490243991,-1769.4485984,0.00014989,2]
[330483701,1719490244002,-35748.1472534,0.00014989,2]
[330483702,1719490244012,-622.7321884,0.00014989,2]
[330483703,1719490244023,-735.13477777,0.00014999,2]
[330483704,1719490244033,-2004.97925289,0.00014999,2]
[330483705,1719490244045,-184335.73138793,0.00015,2]
[330483706,1719490244056,-5000.0,0.00015,2]
[330483707,1719490244066,-31589.468049,0.00015,2]
[330483708,1719490244076,-3974.20879947,0.00015,2]
[330483709,1719490244087,-444.0,0.00015,2]
[330483710,1719490244098,-2000.0,0.00015,2]
[330483711,1719490244108,-200.0,0.00015,2]
[330483712,1719490244118,-903.0,0.00015,2]
[330483713,1719490244127,-163.42,0.00015068,2]
[330483714,1719490244137,-5942.0,0.000152,5]
[330483715,1719490244147,-450.40984495,0.00015287,2]
[330483716,1719490244156,-367.86522223,0.00015354,2]
[330483717,1719490244166,-2243.97882411,0.00015359,2]
[330483718,1719490244176,-3179.90201373,0.00015491,2]
[330483719,1719490244186,-150.0,0.00015515,2]
[330483720,1719490244196,-155.04064792,0.00015535,2]
[330483721,1719490244206,-1339.79210659,0.00015535,2]
[330483722,1719490244216,-1500.0,0.00015556,2]
[330483723,1719490244226,-2840.63896348,0.00015567,2]
[330483724,1719490244238,-24630.6982386,0.00015622,2]
[330483725,1719490244248,-604.61,0.00015755,2]
[330483726,1719490244257,-1000.0,0.00015898,2]
[330483727,1719490244267,-2000.0,0.00016,2]
[330483728,1719490244277,-3179.90201373,0.00016082,2]
[330483729,1719490244287,-3236.01137135,0.00016172,2]
[330483730,1719490244297,-2840.63896348,0.000164,2]
[330483731,1719490244306,-163.42,0.00016438,2]
[330483732,1719490244316,-3179.90201373,0.00016673,2]
[330483733,1719490244325,-150.0,0.00016696,2]
[330483734,1719490244335,-5784.0,0.00016696,2]
[330483735,1719490244344,-5167.0,0.00016696,2]
[330483736,1719490244354,-228.818,0.00016696,2]
[330483737,1719490244364,-1573.0,0.00016696,2]
[330483738,1719490244373,-1197.0,0.00016696,2]
[330483739,1719490244383,-305.13007106,0.00016699,2]
[330483740,1719490244392,-5470.07193818,0.00016808,2]
[330483741,1719490244402,-600.0,0.000169,6]
[330483742,1719490244412,-2000.0,0.00017,2]
[330483743,1719490244421,-2840.63896348,0.00017233,2]
[330483744,1719490244431,-10000.0,0.0001726,2]
[330483745,1719490244440,-3179.90201373,0.00017264,2]
[330483746,1719490244450,-158.73260561,0.00017444,2]
[330483747,1719490244459,-1000.0,0.00017664,2]
[330483748,1719490244468,-226.97665617,0.00017703,2]
[330483749,1719490244478,-3179.90201373,0.00017855,2]
[330483750,1719490244488,-150.0,0.00017856,2]
[330483751,1719490244497,-370.27430286,0.00018,2]
[330483752,1719490244507,-2000.0,0.00018,2]
[330483753,1719490244516,-228.47388694,0.00018,2]
[330483754,1719490244526,-228.47388694,0.00018,2]
[330483755,1719490244536,-228.47388694,0.00018,2]
[330483756,1719490244547,-228.47388694,0.00018,2]
[330483757,1719490244558,-228.47388694,0.00018,2]
[330483758,1719490244567,-228.47388694,0.00018,2]
[330483759,1719490244577,-228.47388694,0.00018,2]
[330483760,1719490244587,-228.47388694,0.00018,2]
[330483761,1719490244596,-228.47388694,0.00018,2]
[330483762,1719490244607,-228.47388694,0.00018,2]
[330483763,1719490244616,-228.47388694,0.00018,2]
[330483764,1719490244625,-228.47388694,0.00018,2]
[330483765,1719490244640,-228.47388694,0.00018,2]
[330483766,1719490244650,-228.47388694,0.00018,2]
[330483767,1719490244659,-228.47388694,0.00018,2]
[330483768,1719490244669,-228.47388694,0.00018,2]
[330483769,1719490244679,-228.47388694,0.00018,2]
[330483770,1719490244689,-228.47388694,0.00018,2]
[330483771,1719490244698,-228.47388694,0.00018,2]
[330483772,1719490244708,-228.47388694,0.00018,2]
[330483773,1719490244717,-228.47388694,0.00018,2]
[330483774,1719490244730,-228.47388694,0.00018,2]
[330483775,1719490244739,-228.47388694,0.00018,2]
[330483776,1719490244748,-228.47388694,0.00018,2]
[330483777,1719490244758,-228.47388694,0.00018,2]
[330483778,1719490244768,-228.47388694,0.00018,2]
[330483779,1719490244778,-228.47388694,0.00018,2]
[330483780,1719490244788,-228.47388694,0.00018,2]
[330483781,1719490244798,-228.47388694,0.00018,2]
[330483782,1719490244807,-228.47388694,0.00018,2]
[330483783,1719490244817,-228.47388694,0.00018,2]
[330483784,1719490244827,-228.47388694,0.00018,2]
[330483785,1719490244836,-228.47388694,0.00018,2]
[330483786,1719490244846,-228.47388694,0.00018,2]
[330483787,1719490244855,-604.61,0.00018019,2]
[330483788,1719490244864,-2840.63896348,0.00018067,2]
[330483789,1719490244874,-354.14241836,0.00018404,2]
[330483790,1719490244883,-3179.90201373,0.00018445,2]
[330483791,1719490244893,-2840.63896348,0.000189,2]
[330483792,1719490244903,-163.19,0.000189,2]
[330483793,1719490244913,-2405.0945065,0.00019,2]
[330483812,1719490248027,-946.31739731,0.00014999,2]
[330483813,1719490248036,-228.47388694,0.00018,2]
[330483814,1719490248046,-228.47388694,0.00018,2]
[330483815,1719490248055,-228.47388694,0.00018,2]
[330483816,1719490248065,-228.47388694,0.00018,2]
[330483817,1719490248074,-228.47388694,0.00018,2]
[330483818,1719490248083,-228.47388694,0.00018,2]
[330483819,1719490248092,-228.47388694,0.00018,2]
[330483820,1719490248102,-228.47388694,0.00018,2]
[330483821,1719490248111,-228.47388694,0.00018,2]
[330483822,1719490248120,-228.47388694,0.00018,2]
[330483823,1719490248130,-228.47388694,0.00018,2]
[330483824,1719490248139,-228.47388694,0.00018,2]
[330483825,1719490248148,-228.47388694,0.00018,2]
[330483826,1719490248158,-228.47388694,0.00018,2]
[330483827,1719490248167,-228.47388694,0.00018,2]
[330483828,1719490248176,-228.47388694,0.00018,2]
[330483829,1719490248185,-228.47388694,0.00018,2]
[330483830,1719490248194,-13125.08297565,0.00019,2]
[330483831,1719490248204,-2000.0,0.00019,2]
[330483832,1719490248213,-206.63373,0.00019,2]
[330483833,1719490248222,-3179.90201373,0.00019036,2]
[330483834,1719490248232,-500.0,0.00019178,2]
[330483835,1719490248242,-497.72822381,0.00019178,2]
[330483836,1719490248251,-500.0,0.00019178,2]
[330483837,1719490248260,-500.0,0.00019178,2]
[330483838,1719490248269,-500.0,0.00019178,2]
[330483839,1719490248278,-500.0,0.00019178,2]
[330483840,1719490248288,-500.0,0.00019178,2]
[330483841,1719490248297,-500.0,0.00019178,2]
[330483842,1719490248307,-500.0,0.00019178,2]
[330483843,1719490248316,-254.78504442,0.00019178,2]
[330483844,1719490248326,-500.0,0.00019178,2]
[330483845,1719490248335,-500.0,0.00019178,2]
[330483846,1719490248344,-500.0,0.00019178,2]
[330483847,1719490248353,-500.0,0.00019178,2]
[330483848,1719490248362,-500.0,0.00019178,2]
[330483849,1719490248372,-500.0,0.00019178,2]
[330483850,1719490248380,-500.0,0.00019178,2]
[330483851,1719490248389,-500.0,0.00019178,2]
[330483852,1719490248398,-500.0,0.00019178,2]
[330483853,1719490248407,-500.0,0.00019178,2]
[330483854,1719490248417,-500.0,0.00019178,2]
[330483855,1719490248425,-500.0,0.00019178,2]
[330483856,1719490248435,-500.0,0.00019178,2]
[330483857,1719490248444,-500.0,0.00019178,2]
[330483858,1719490248453,-500.0,0.00019178,2]
[330483859,1719490248462,-500.0,0.00019178,2]
[330483860,1719490248471,-500.0,0.00019178,2]
[330483861,1719490248480,-626.69573932,0.00019178,2]
[330483862,1719490248489,-500.0,0.00019178,2]
[330483863,1719490248499,-500.0,0.00019178,2]
[330483864,1719490248508,-500.0,0.00019178,2]
[330483865,1719490248517,-500.0,0.00019178,2]
[330483866,1719490248526,-579.46999781,0.00019178,2]
[330483867,1719490248535,-500.0,0.00019178,2]
[330483868,1719490248545,-500.0,0.00019178,2]
[330483869,1719490248554,-443.68021145,0.00019178,2]
[330483870,1719490248563,-500.0,0.00019178,2]
[330483871,1719490248572,-306.54635061,0.00019178,2]
[330483872,1719490248582,-322.7430439,0.00019178,2]
[330483873,1719490248591,-500.0,0.00019178,2]
[330483874,1719490248600,-500.0,0.00019178,2]
[330483875,1719490248610,-500.92296281,0.00019178,2]
[330483876,1719490248619,-500.0,0.00019178,2]
[330483877,1719490248628,-500.0,0.00019178,2]
[330483878,1719490248640,-500.0,0.00019178,2]
[330483879,1719490248649,-500.0,0.00019178,2]
[330483880,1719490248662,-181.79472986,0.00019178,2]
[330483881,1719490248671,-500.0,0.00019178,2]
[330483882,1719490248682,-256.30675321,0.00019178,2]
[330483883,1719490248691,-500.0,0.00019178,2]
[330483884,1719490248700,-500.0,0.00019178,2]
[330483885,1719490248709,-500.0,0.00019178,2]
[330483886,1719490248718,-500.0,0.00019178,2]
[330483887,1719490248728,-500.0,0.00019178,2]
[330483888,1719490248737,-500.0,0.00019178,2]
[330483889,1719490248746,-500.0,0.00019178,2]
[330483890,1719490248755,-500.0,0.00019178,2]
[330483891,1719490248764,-500.0,0.00019178,2]
[330483892,1719490248774,-500.0,0.00019178,2]
[330483893,1719490248783,-500.0,0.00019178,2]
[330483894,1719490248792,-500.0,0.00019178,2]
[330483895,1719490248801,-500.0,0.00019178,2]
[330483896,1719490248811,-500.0,0.00019178,2]
[330483897,1719490248820,-500.0,0.00019178,2]
[330483898,1719490248829,-525.82379106,0.00019178,2]
[330483899,1719490248839,-440.3219065,0.00019178,2]
[330483900,1719490248848,-315.40992538,0.00019178,2]
[330483901,1719490248858,-250.0,0.00019178,2]
[330483902,1719490248867,-368.59840723,0.0001935,2]
[330483903,1719490248877,-500.0,0.00019355,2]
[330483904,1719490248887,-500.0,0.00019355,2]
[330483905,1719490248896,-500.0,0.00019355,2]
[330483906,1719490248906,-500.0,0.00019355,2]
[330483907,1719490248915,-500.0,0.00019355,2]
[330483908,1719490248924,-500.0,0.00019355,2]
[330483909,1719490248934,-500.0,0.00019355,2]
[330483910,1719490248943,-500.0,0.00019355,2]
[330483911,1719490248953,-500.0,0.00019355,2]
[330483912,1719490248963,-500.0,0.00019355,2]
[330483913,1719490248973,-500.0,0.00019355,2]
[330483914,1719490248983,-500.0,0.00019355,2]
[330483915,1719490248992,-500.0,0.00019355,2]
[330483916,1719490249003,-500.0,0.00019355,2]
[330483917,1719490249012,-500.0,0.00019355,2]
[330483918,1719490249021,-500.0,0.00019355,2]
[330483919,1719490249031,-500.0,0.00019355,2]
[330483920,1719490249041,-500.0,0.00019355,2]
[330483921,1719490249050,-500.0,0.00019355,2]
[330483922,1719490249059,-500.0,0.00019355,2]
[330483923,1719490249068,-500.0,0.00019355,2]
[330483924,1719490249078,-500.0,0.00019355,2]
[330483925,1719490249087,-500.0,0.00019355,2]
[330483926,1719490249096,-500.0,0.00019355,2]
[330483927,1719490249105,-500.0,0.00019355,2]